fUST/lending_fUST_20240612
["ID","MTS","AMOUNT","RATE_DAILY","PERIOD"]
[329215157,1718185842798,-500.0,0.00016711,2]
[329215159,1718185842810,-500.0,0.00016711,2]
[329215161,1718185842822,-513.26649873,0.00016712,2]
[329215163,1718185842833,-500.0,0.00016712,2]
[329215165,1718185842844,-500.0,0.00016712,2]
[329215167,1718185842855,-558.71,0.00016712,2]
[329215169,1718185842865,-500.0,0.00016712,2]
[329215171,1718185842878,-500.0,0.00016712,2]
[329215173,1718185842888,-500.0,0.00016712,2]
[329215175,1718185842899,-500.0,0.00016712,2]
[329215177,1718185842911,-503.66219178,0.00016712,2]
[329215179,1718185842923,-500.0,0.00016712,2]
[329215183,1718185842934,-509.99246313,0.00016712,2]
[329215186,1718185842944,-526.29441157,0.00016712,2]
[329215188,1718185842955,-500.0,0.00016712,2]
[329215191,1718185842966,-500.0,0.00016712,2]
[329215195,1718185842985,-500.0,0.00016712,2]
[329215197,1718185842996,-500.0,0.00016712,2]
[329215199,1718185843007,-500.0,0.00016712,2]
[329215201,1718185843020,-500.0,0.00016712,2]
[329215202,1718185843031,-500.0,0.00016712,2]
[329215204,1718185843041,-500.0,0.00016712,2]
[329215206,1718185843052,-551.2095067,0.00016712,2]
[329215209,1718185843064,-500.0,0.00016712,2]
[329215210,1718185843077,-500.0,0.00016712,2]
[329215213,1718185843103,-500.0,0.00016712,2]
[329215215,1718185843117,-500.0,0.00016712,2]
[329215217,1718185843129,-500.0,0.00016712,4]
[329215219,1718185843140,-500.0,0.00016712,2]
[329215221,1718185843151,-531.61,0.00016712,2]
[329215223,1718185843161,-500.0,0.00016712,2]
[329215225,1718185843172,-509.30829293,0.00016712,2]
[329215226,1718185843183,-500.0,0.00016712,2]
[329215229,1718185843194,-500.0,0.00016712,2]
[329215231,1718185843205,-500.0,0.00016712,2]
[329215232,1718185843216,-250.0,0.00016712,2]
[329215234,1718185843227,-500.0,0.00016712,2]
[329215237,1718185843240,-500.0,0.00016712,2]
[329215238,1718185843250,-167.1,0.00016712,2]
[329215240,1718185843260,-500.0,0.00016712,2]
[329215242,1718185843270,-280.97830287,0.00016712,2]
[329215244,1718185843280,-672.24,0.00016712,2]
[329215245,1718185843292,-500.0,0.00016712,2]
[329215247,1718185843303,-500.0,0.00016712,2]
[329215249,1718185843313,-500.0,0.00016712,2]
[329215251,1718185843326,-500.0,0.00016712,2]
[329215253,1718185843337,-500.0,0.00016712,2]
[329215255,1718185843347,-500.0,0.00016712,2]
[329215257,1718185843359,-366.02163504,0.00016712,2]
[329215259,1718185843369,-500.0,0.00016712,2]
[329215261,1718185843381,-500.0,0.00016712,2]
[329215263,1718185843391,-500.0,0.00016712,2]
[329215265,1718185843402,-500.0,0.00016712,2]
[329215267,1718185843412,-506.55197469,0.00016712,2]
[329215269,1718185843423,-500.0,0.00016712,2]
[329215271,1718185843433,-500.0,0.00016712,2]
[329215273,1718185843443,-500.0,0.00016712,2]
[329215275,1718185843454,-500.0,0.00016712,2]
[329215277,1718185843465,-500.0,0.00016712,2]
[329215279,1718185843475,-505.38485582,0.00016712,2]
[329215281,1718185843486,-1247.73,0.00016712,2]
[329215283,1718185843496,-500.0,0.00016712,2]
[329215285,1718185843507,-500.0,0.00016712,2]
[329215287,1718185843517,-500.0,0.00016712,2]
[329215288,1718185843528,-500.0,0.00016712,2]
[329215290,1718185843539,-500.0,0.00016712,2]
[329215293,1718185843550,-500.0,0.00016712,2]
[329215295,1718185843561,-500.0,0.00016712,2]
[329215297,1718185843572,-504.93859245,0.00016712,2]
[329215298,1718185843582,-500.0,0.00016712,2]
[329215300,1718185843592,-404.35118187,0.00016712,2]
[329215302,1718185843604,-500.0,0.00016712,2]
[329215304,1718185843614,-510.89382712,0.00016712,2]
[329215306,1718185843625,-3722.41,0.00016712,2]
[329215308,1718185843635,-511.51904992,0.00016712,2]
[329215310,1718185843645,-500.0,0.00016712,2]
[329215312,1718185843655,-500.0,0.00016712,2]
[329215314,1718185843666,-500.0,0.00016712,2]
[329215316,1718185843676,-3755.33,0.00016712,2]
[329215318,1718185843689,-500.0,0.00016712,2]
[329215320,1718185843699,-500.0,0.00016712,2]
[329215322,1718185843709,-500.0,0.00016712,2]
[329215324,1718185843721,-500.0,0.00016712,2]
[329215326,1718185843731,-364.53588936,0.00016712,2]
[329215328,1718185843742,-505.72840727,0.00016712,2]
[329215330,1718185843752,-500.0,0.00016712,2]
[329215332,1718185843762,-500.0,0.00016712,2]
[329215334,1718185843774,-500.0,0.00016712,2]
[329215336,1718185843784,-500.0,0.00016712,2]
[329215338,1718185843795,-500.0,0.00016712,2]
[329215340,1718185843806,-299.71,0.00016712,2]
[329215342,1718185843816,-508.33036826,0.00016712,2]
[329215344,1718185843827,-500.0,0.00016712,2]
[329215346,1718185843837,-500.0,0.00016712,2]
[329215348,1718185843847,-500.0,0.00016712,2]
[329215350,1718185843857,-802.48,0.00016712,2]
[329215351,1718185843868,-500.0,0.00016712,2]
[329215353,1718185843880,-500.0,0.00016712,2]
[329215355,1718185843890,-1825.1,0.00016712,2]
[329215358,1718185843902,-500.0,0.00016712,2]
[329215359,1718185843912,-505.20985482,0.00016712,2]
[329215361,1718185843923,-500.0,0.00016712,2]
[329215363,1718185843934,-500.0,0.00016712,2]
[329215365,1718185843945,-500.0,0.00016712,2]
[329215367,1718185843955,-505.60901484,0.00016712,2]
[329215369,1718185843967,-500.0,0.00016712,2]
[329215371,1718185843982,-1484.23,0.00016712,2]
[329215373,1718185843992,-500.0,0.00016712,2]
[329215375,1718185844003,-500.0,0.00016712,2]
[329215377,1718185844014,-500.0,0.00016712,2]
[329215379,1718185844024,-500.0,0.00016712,2]
[329215381,1718185844035,-500.0,0.00016712,2]
[329215383,1718185844044,-500.0,0.00016712,2]
[329215385,1718185844056,-868.97,0.00016712,2]
[329215387,1718185844066,-500.0,0.00016712,2]
[329215389,1718185844085,-500.0,0.00016712,2]
[329215392,1718185844101,-527.95,0.00016712,2]
[329215393,1718185844111,-500.0,0.00016712,2]
[329215395,1718185844122,-19437.68,0.00016712,2]
[329215397,1718185844133,-500.0,0.00016712,2]
[329215399,1718185844143,-13381.62,0.00016712,2]
[329215401,1718185844153,-7977.93,0.00016712,2]
[329215403,1718185844164,-500.0,0.00016712,2]
[329215405,1718185844175,-500.0,0.00016712,2]
[329215407,1718185844185,-500.0,0.00016712,2]
[329215409,1718185844195,-500.0,0.00016712,2]
[329215411,1718185844206,-1057.26,0.00016712,2]
[329215413,1718185844216,-3242.14,0.00016712,2]
[329215415,1718185844226,-500.0,0.00016712,2]
[329215417,1718185844236,-500.0,0.00016712,2]
[329215419,1718185844247,-500.0,0.00016712,2]
[329215421,1718185844257,-2043.60611546,0.00016817,2]
[329215422,1718185844267,-219.5,0.00016861,2]
[329215425,1718185844278,-500.0,0.00016985,2]
[329215426,1718185844289,-500.0,0.00016985,2]
[329215428,1718185844300,-1244.45,0.00016985,2]
[329215430,1718185844310,-1244.45,0.00016985,2]
[329215432,1718185844321,-500.0,0.00016985,2]
[329215434,1718185844331,-500.0,0.00016985,2]
[329215436,1718185844341,-500.0,0.00016986,2]
[329215438,1718185844351,-500.0,0.00016986,2]
[329215440,1718185844361,-500.0,0.00016986,2]
[329215442,1718185844371,-508.594545,0.00016986,2]
[329215444,1718185844384,-500.0,0.00016986,2]
[329215446,1718185844394,-500.0,0.00016986,2]
[329215448,1718185844405,-500.0,0.00016986,2]
[329215450,1718185844415,-500.0,0.00016986,2]
[329215452,1718185844426,-500.0,0.00016986,2]
[329215454,1718185844436,-500.0,0.00016986,2]
[329215456,1718185844447,-500.0,0.00016986,2]
[329215458,1718185844457,-180.37399143,0.00016986,2]
[329215460,1718185844468,-500.0,0.00016986,2]
[329215462,1718185844478,-500.0,0.00016986,4]
[329215464,1718185844488,-531.61,0.00016986,2]
[329215466,1718185844499,-500.0,0.00016986,2]
[329215468,1718185844509,-500.0,0.00016986,2]
[329215470,1718185844519,-500.0,0.00016986,2]
[329215472,1718185844529,-429.94164619,0.00016986,2]
[329215474,1718185844540,-250.0,0.00016986,2]
[329215475,1718185844550,-500.0,0.00016986,2]
[329215478,1718185844561,-505.69946728,0.00016986,2]
[329215479,1718185844573,-500.0,0.00016986,2]
[329215481,1718185844584,-672.24,0.00016986,2]
[329215483,1718185844594,-310.85025111,0.00016986,2]
[329215485,1718185844604,-500.0,0.00016986,2]
[329215487,1718185844615,-514.81433297,0.00016986,2]
[329215489,1718185844626,-530.5829225,0.00016986,2]
[329215491,1718185844637,-439.67644935,0.00016986,2]
[329215493,1718185844647,-500.0,0.00016986,2]
[329215495,1718185844658,-500.0,0.00016986,2]
[329215497,1718185844669,-500.0,0.00016986,2]
[329215499,1718185844679,-500.0,0.00016986,2]
[329215501,1718185844690,-500.0,0.00016986,2]
[329215503,1718185844701,-500.0,0.00016986,2]
[329215505,1718185844711,-500.0,0.00016986,2]
[329215507,1718185844722,-1247.73,0.00016986,2]
[329215509,1718185844732,-500.0,0.00016986,2]
[329215511,1718185844743,-500.0,0.00016986,2]
[329215513,1718185844753,-570.17,0.00016986,2]
[329215515,1718185844764,-635.867111,0.00016986,2]
[329215517,1718185844774,-500.0,0.00016986,2]
[329215519,1718185844785,-500.0,0.00016986,2]
[329215521,1718185844796,-170.02,0.00016986,2]
[329215523,1718185844807,-3722.41,0.00016986,2]
[329215525,1718185844816,-500.0,0.00016986,2]
[329215527,1718185844826,-500.0,0.00016986,2]
[329215529,1718185844837,-500.0,0.00016986,2]
[329215531,1718185844847,-3755.33,0.00016986,2]
[329215533,1718185844858,-500.0,0.00016986,2]
[329215536,1718185844873,-511.80827517,0.00016986,2]
[329215539,1718185844883,-500.0,0.00016986,2]
[329215541,1718185844894,-500.0,0.00016986,2]
[329215543,1718185844905,-512.43162702,0.00016986,2]
[329215545,1718185844915,-505.99340678,0.00016986,2]
[329215548,1718185844926,-500.0,0.00016986,2]
[329215551,1718185844936,-500.0,0.00016986,2]
[329215553,1718185844947,-802.48,0.00016986,2]
[329215555,1718185844958,-500.0,0.00016986,2]
[329215557,1718185844970,-500.0,0.00016986,2]
[329215559,1718185844981,-1825.1,0.00016986,2]
[329215561,1718185844992,-395.55217758,0.00016986,2]
[329215563,1718185845002,-500.0,0.00016986,2]
[329215565,1718185845012,-500.0,0.00016986,2]
[329215566,1718185845023,-1484.23,0.00016986,2]
[329215568,1718185845033,-500.0,0.00016986,2]
[329215570,1718185845042,-500.0,0.00016986,2]
[329215572,1718185845054,-500.0,0.00016986,2]
[329215575,1718185845073,-310.16453841,0.00016986,2]
[329215577,1718185845089,-500.0,0.00016986,2]
[329215579,1718185845100,-868.97,0.00016986,2]
[329215581,1718185845112,-500.0,0.00016986,2]
[329215584,1718185845123,-557.46,0.00016986,2]
[329215585,1718185845134,-527.95,0.00016986,2]
[329215587,1718185845144,-500.0,0.00016986,2]
[329215590,1718185845154,-19437.68,0.00016986,2]
[329215591,1718185845165,-500.0,0.00016986,2]
[329215593,1718185845175,-13381.62,0.00016986,2]
[329215595,1718185845186,-7977.93,0.00016986,2]
[329215597,1718185845197,-500.0,0.00016986,2]
[329215599,1718185845207,-500.0,0.00016986,2]
[329215601,1718185845218,-500.0,0.00016986,2]
[329215603,1718185845228,-1057.26,0.00016986,2]
[329215605,1718185845239,-3242.14,0.00016986,2]
[329215607,1718185845250,-500.0,0.00016986,2]
[329215609,1718185845260,-500.0,0.00016986,2]
[329215611,1718185845271,-500.0,0.00016986,2]
[329215613,1718185845282,-2000.0,0.00017,2]
[329215615,1718185845292,-1000.0,0.00017,2]
[329215617,1718185845302,-219.5,0.00017034,2]
[329215619,1718185845313,-1244.45,0.0001718,2]
[329215621,1718185845324,-219.5,0.00017207,2]
[329215623,1718185845334,-500.0,0.00017259,2]
[329215625,1718185845345,-1244.45,0.00017259,2]
[329215627,1718185845355,-500.0,0.00017259,2]
[329215629,1718185845365,-504.66260054,0.0001726,2]
[329215631,1718185845376,-500.0,0.0001726,2]
[329215633,1718185845387,-500.0,0.0001726,2]
[329215635,1718185845397,-500.0,0.0001726,2]
[329215637,1718185845409,-500.0,0.0001726,2]
[329215639,1718185845421,-566.81306452,0.0001726,2]
[329215640,1718185845431,-500.0,0.0001726,2]
[329215643,1718185845443,-500.0,0.0001726,2]
[329215644,1718185845453,-500.0,0.0001726,4]
[329215646,1718185845465,-531.61,0.0001726,2]
[329215649,1718185845476,-593.6149024,0.0001726,2]
[329215651,1718185845486,-500.0,0.0001726,2]
[329215653,1718185845496,-500.0,0.0001726,2]
[329215655,1718185845507,-250.0,0.0001726,2]
[329215657,1718185845517,-500.0,0.0001726,2]
[329215659,1718185845528,-500.0,0.0001726,2]
[329215661,1718185845538,-672.24,0.0001726,2]
[329215663,1718185845549,-500.0,0.0001726,2]
[329215665,1718185845560,-500.0,0.0001726,2]
[329215667,1718185845570,-500.0,0.0001726,2]
[329215669,1718185845580,-500.0,0.0001726,2]
[329215671,1718185845591,-500.0,0.0001726,2]
[329215673,1718185845601,-500.0,0.0001726,2]
[329215676,1718185845612,-500.0,0.0001726,2]
[329215679,1718185845622,-500.0,0.0001726,2]
[329215681,1718185845634,-1247.73,0.0001726,2]
[329215683,1718185845645,-500.0,0.0001726,2]
[329215685,1718185845655,-500.0,0.0001726,2]
[329215687,1718185845666,-500.0,0.0001726,2]
[329215689,1718185845675,-3722.41,0.0001726,2]
[329215691,1718185845686,-500.0,0.0001726,2]
[329215693,1718185845696,-500.0,0.0001726,2]
[329215695,1718185845707,-588.26120182,0.0001726,2]
[329215697,1718185845718,-3755.33,0.0001726,2]
[329215699,1718185845729,-500.0,0.0001726,2]
[329215701,1718185845739,-209.58979908,0.0001726,2]
[329215703,1718185845749,-500.0,0.0001726,2]
[329215705,1718185845760,-500.0,0.0001726,2]
[329215707,1718185845770,-802.48,0.0001726,2]
[329215709,1718185845780,-500.0,0.0001726,2]
[329215711,1718185845791,-1825.1,0.0001726,2]
[329215713,1718185845802,-500.0,0.0001726,2]
[329215715,1718185845813,-500.0,0.0001726,2]
[329215717,1718185845823,-1484.23,0.0001726,2]
[329215719,1718185845834,-500.0,0.0001726,2]
[329215737,1718185846008,-500.0,0.0001726,2]
[329215739,1718185846035,-500.0,0.0001726,2]
[329215741,1718185846046,-500.0,0.0001726,2]
[329215743,1718185846060,-868.97,0.0001726,2]
[329215745,1718185846071,-500.0,0.0001726,2]
[329215747,1718185846083,-527.95,0.0001726,2]
[329215749,1718185846107,-500.0,0.0001726,2]
[329215751,1718185846118,-19437.68,0.0001726,2]
[329215753,1718185846130,-13381.62,0.0001726,2]
[329215755,1718185846140,-7977.93,0.0001726,2]
[329215757,1718185846151,-500.0,0.0001726,2]
[329215759,1718185846162,-172.43868174,0.0001726,2]
[329215761,1718185846172,-500.0,0.0001726,2]
[329215763,1718185846182,-1057.26,0.0001726,2]
[329215765,1718185846193,-3242.14,0.0001726,2]
[329215767,1718185846204,-500.0,0.0001726,2]
[329215769,1718185846215,-2043.60611546,0.00017297,2]
[329215771,1718185846226,-219.5,0.0001738,2]
[329215772,1718185846236,-373.65892282,0.00017532,2]
[329215773,1718185846247,-500.0,0.00017532,2]
[329215774,1718185846257,-1244.45,0.00017533,2]
[329215775,1718185846268,-1244.45,0.00017533,2]
[329215776,1718185846278,-500.0,0.00017533,2]
[329215777,1718185846289,-294.89911392,0.00017534,2]
[329215778,1718185846299,-500.0,0.00017534,2]
[329215779,1718185846310,-500.0,0.00017534,2]
[329215780,1718185846321,-500.0,0.00017534,2]
[329215781,1718185846331,-500.0,0.00017534,4]
[329215782,1718185846342,-531.61,0.00017534,2]
[329215783,1718185846353,-500.0,0.00017534,2]
[329215784,1718185846364,-250.0,0.00017534,2]
[329215785,1718185846375,-500.0,0.00017534,2]
[329215786,1718185846387,-500.0,0.00017534,2]
[329215787,1718185846397,-672.24,0.00017534,2]
[329215788,1718185846408,-500.0,0.00017534,2]
[329215789,1718185846419,-500.0,0.00017534,2]
[329215790,1718185846430,-500.0,0.00017534,2]
[329215791,1718185846441,-324.57038224,0.00017534,2]
[329215793,1718185846452,-500.0,0.00017534,2]
[329215795,1718185846462,-500.0,0.00017534,2]
[329215797,1718185846473,-1247.73,0.00017534,2]
[329215799,1718185846484,-500.0,0.00017534,2]
[329215801,1718185846496,-500.0,0.00017534,2]
[329215803,1718185846506,-3722.41,0.00017534,2]
[329215805,1718185846517,-500.0,0.00017534,2]
[329215807,1718185846528,-500.0,0.00017534,2]
[329215809,1718185846539,-3755.33,0.00017534,2]
[329215811,1718185846549,-500.0,0.00017534,2]
[329215813,1718185846560,-500.0,0.00017534,2]
[329215815,1718185846571,-500.0,0.00017534,2]
[329215817,1718185846582,-802.48,0.00017534,2]
[329215819,1718185846593,-594.44080615,0.00017534,2]
[329215821,1718185846604,-1825.1,0.00017534,2]
[329215823,1718185846614,-500.0,0.00017534,2]
[329215825,1718185846625,-264.71223964,0.00017534,2]
[329215826,1718185846637,-1484.23,0.00017534,2]
[329215828,1718185846647,-500.0,0.00017534,2]
[329215830,1718185846658,-500.0,0.00017534,2]
[329215833,1718185846670,-165.58453899,0.00017534,2]
[329215835,1718185846681,-868.97,0.00017534,2]
[329215837,1718185846692,-500.0,0.00017534,2]
[329215838,1718185846702,-527.95,0.00017534,2]
[329215840,1718185846713,-19437.68,0.00017534,2]
[329215843,1718185846727,-13381.62,0.00017534,2]
[329215845,1718185846737,-7977.93,0.00017534,2]
[329215847,1718185846748,-500.0,0.00017534,2]
[329215849,1718185846759,-500.0,0.00017534,2]
[329215851,1718185846770,-1057.26,0.00017534,2]
[329215853,1718185846781,-3242.14,0.00017534,2]
[329215855,1718185846791,-262.28007136,0.00017534,2]
[329215856,1718185846801,-219.5,0.00017554,2]
[329215858,1718185846813,-1975.42229871,0.000176,2]
[329215861,1718185846824,-219.5,0.00017727,2]
[329215862,1718185846834,-2043.60611546,0.00017776,2]
[329215865,1718185846846,-1244.45,0.00017807,2]
[329215867,1718185846856,-529.1,0.00017807,2]
[329215869,1718185846868,-571.67,0.00017808,2]
[329215871,1718185846880,-516.88891639,0.00017808,2]
[329215873,1718185846891,-500.0,0.00017808,2]
[329215875,1718185846901,-500.0,0.00017808,4]
[329215877,1718185846912,-531.61,0.00017808,2]
[329215879,1718185846923,-500.0,0.00017808,2]
[329215881,1718185846933,-250.0,0.00017808,2]
[329215883,1718185846943,-500.0,0.00017808,2]
[329215885,1718185846953,-672.24,0.00017808,2]
[329215887,1718185846964,-500.0,0.00017808,2]
[329215889,1718185846978,-500.0,0.00017808,2]
[329215891,1718185846989,-500.0,0.00017808,2]
[329215893,1718185847000,-500.0,0.00017808,2]
[329215895,1718185847011,-1247.73,0.00017808,2]
[329215897,1718185847023,-500.0,0.00017808,2]
[329215899,1718185847034,-500.0,0.00017808,2]
[329215901,1718185847045,-3722.41,0.00017808,2]
[329215903,1718185847058,-500.0,0.00017808,2]
[329215904,1718185847069,-500.0,0.00017808,2]
[329215906,1718185847079,-3755.33,0.00017808,2]
[329215908,1718185847105,-500.0,0.00017808,2]
[329215910,1718185847116,-500.0,0.00017808,2]
[329215912,1718185847127,-500.0,0.00017808,2]
[329215915,1718185847139,-802.48,0.00017808,2]
[329215916,1718185847149,-1825.1,0.00017808,2]
[329215918,1718185847159,-500.0,0.00017808,2]
[329215920,1718185847170,-1484.23,0.00017808,2]
[329215922,1718185847180,-500.0,0.00017808,2]
[329215924,1718185847190,-500.0,0.00017808,2]
[329215926,1718185847201,-868.97,0.00017808,2]
[329215928,1718185847211,-500.0,0.00017808,2]
[329215930,1718185847222,-527.95,0.00017808,2]
[329215932,1718185847233,-19437.68,0.00017808,2]
[329215934,1718185847244,-13381.62,0.00017808,2]
[329215936,1718185847254,-7977.93,0.00017808,2]
[329215939,1718185847264,-500.0,0.00017808,2]
[329215940,1718185847275,-1057.26,0.00017808,2]
[329215942,1718185847285,-500.0,0.00017808,2]
[329215944,1718185847296,-3242.14,0.00017808,2]
[329215946,1718185847306,-1244.45,0.00017897,2]
[329215948,1718185847316,-10491.92816074,0.00017898,2]
[329215950,1718185847326,-219.5,0.000179,2]
[329215952,1718185847337,-2765.44251206,0.00018,2]
[329215954,1718185847347,-632.99963654,0.00018,2]
[329215957,1718185847358,-876.82850055,0.00018,2]
[329215958,1718185847368,-155.00620025,0.00018,2]
[329215960,1718185847379,-1355.61945113,0.00018,2]
[329215962,1718185847389,-155.02790502,0.00018,2]
[329215964,1718185847400,-1036.68456979,0.00018,2]
[329215966,1718185847411,-204.17791001,0.00018,2]
[329215968,1718185847421,-1000.0,0.00018,2]
[329215970,1718185847432,-10000.0,0.00018,2]
[329215972,1718185847442,-306.0,0.00018037,2]
[329215974,1718185847453,-232.495964,0.00018037,2]
[329215977,1718185847465,-219.5,0.00018073,2]
[329215979,1718185847475,-1244.45,0.00018081,2]
[329215980,1718185847486,-3677.7192,0.00018082,2]
[329215982,1718185847496,-500.0,0.00018082,4]
[329215985,1718185847515,-531.61,0.00018082,2]
[329215987,1718185847529,-500.0,0.00018082,2]
[329215990,1718185847540,-250.0,0.00018082,2]
[329215992,1718185847551,-500.0,0.00018082,2]
[329215994,1718185847564,-672.24,0.00018082,2]
[329215996,1718185847575,-500.0,0.00018082,2]
[329215998,1718185847585,-500.0,0.00018082,2]
[329216000,1718185847596,-234.66756291,0.00018082,2]
[329216002,1718185847606,-500.0,0.00018082,2]
[329216004,1718185847617,-1247.73,0.00018082,2]
[329216006,1718185847628,-500.0,0.00018082,2]
[329216008,1718185847638,-3722.41,0.00018082,2]
[329216010,1718185847649,-500.0,0.00018082,2]
[329216012,1718185847659,-318.1967511,0.00018082,2]
[329216014,1718185847669,-3755.33,0.00018082,2]
[329216016,1718185847680,-500.0,0.00018082,2]
[329216018,1718185847690,-500.0,0.00018082,2]
[329216020,1718185847701,-500.0,0.00018082,2]
[329216022,1718185847712,-802.48,0.00018082,2]
[329216024,1718185847723,-1825.1,0.00018082,2]
[329216026,1718185847733,-500.0,0.00018082,2]
[329216028,1718185847744,-1484.23,0.00018082,2]
[329216030,1718185847755,-500.0,0.00018082,2]
[329216032,1718185847766,-500.0,0.00018082,2]
[329216034,1718185847777,-868.97,0.00018082,2]
[329216036,1718185847787,-500.0,0.00018082,2]
[329216038,1718185847797,-527.95,0.00018082,2]
[329216040,1718185847807,-19437.68,0.00018082,2]
[329216042,1718185847816,-13381.62,0.00018082,2]
[329216044,1718185847827,-7977.93,0.00018082,2]
[329216046,1718185847838,-500.0,0.00018082,2]
[329216048,1718185847848,-1057.26,0.00018082,2]
[329216050,1718185847859,-500.0,0.00018082,2]
[329216052,1718185847869,-3242.14,0.00018082,2]
[329216054,1718185847880,-219.5,0.00018246,2]
[329216056,1718185847890,-2043.60611546,0.00018255,2]
[329216058,1718185847901,-1244.45,0.0001832,2]
[329216060,1718185847912,-600.0,0.00018328,2]
[329216062,1718185847922,-1244.45,0.00018355,2]
[329216064,1718185847932,-500.0,0.00018356,4]
[329216066,1718185847943,-531.61,0.00018356,2]
[329216068,1718185847954,-500.0,0.00018356,2]
[329216070,1718185847964,-250.0,0.00018356,2]
[329216072,1718185847979,-500.0,0.00018356,2]
[329216074,1718185847989,-672.24,0.00018356,2]
[329216076,1718185848000,-500.0,0.00018356,2]
[329216078,1718185848011,-500.0,0.00018356,2]
[329216080,1718185848023,-500.0,0.00018356,2]
[329216082,1718185848033,-1247.73,0.00018356,2]
[329216084,1718185848044,-3722.41,0.00018356,2]
[329216086,1718185848057,-500.0,0.00018356,2]
[329216088,1718185848067,-3755.33,0.00018356,2]
[329216090,1718185848077,-500.0,0.00018356,2]
[329216092,1718185848095,-500.0,0.00018356,2]
[329216093,1718185848110,-209.5,0.00018356,2]
[329216095,1718185848120,-802.48,0.00018356,2]
[329216097,1718185848131,-1825.1,0.00018356,2]
[329216099,1718185848141,-500.0,0.00018356,2]
[329216101,1718185848153,-1484.23,0.00018356,2]
[329216103,1718185848163,-500.0,0.00018356,2]
[329216106,1718185848174,-500.0,0.00018356,2]
[329216107,1718185848184,-868.97,0.00018356,2]
[329216110,1718185848194,-599.88311515,0.00018356,2]
[329216111,1718185848205,-527.95,0.00018356,2]
[329216114,1718185848215,-19437.68,0.00018356,2]
[329216115,1718185848225,-13381.62,0.00018356,2]
[329216118,1718185848235,-7977.93,0.00018356,2]
[329216119,1718185848245,-500.0,0.00018356,2]
[329216122,1718185848256,-1057.26,0.00018356,2]
[329216124,1718185848266,-500.0,0.00018356,2]
[329216125,1718185848276,-3242.14,0.00018356,2]
[329216128,1718185848287,-1115.7,0.0001837,2]
[329216130,1718185848296,-155.0,0.000184,2]
[329216132,1718185848307,-606.91207968,0.000185,2]
[329216134,1718185848317,-600.0,0.00018519,2]
[329216136,1718185848327,-1115.7,0.00018543,2]
[329216138,1718185848337,-166.666666,0.00018575,2]
[329216140,1718185848348,-1244.45,0.00018629,2]
[329216142,1718185848358,-500.0,0.0001863,4]
[329216144,1718185848369,-531.61,0.0001863,2]
[329216146,1718185848380,-580.86070805,0.0001863,2]
[329216148,1718185848391,-250.0,0.0001863,2]
[329216150,1718185848401,-500.0,0.0001863,2]
[329216152,1718185848411,-672.24,0.0001863,2]
[329216154,1718185848421,-277.27400704,0.0001863,2]
[329216155,1718185848431,-500.0,0.0001863,2]
[329216157,1718185848442,-500.0,0.0001863,2]